Cogmind - Beta 15 @@@ ROGUE MODE // 2025.10.12 @ 18:32:31 Player: microsand Result: Destroyed by X-57 Shotgunner with Shotgun Performance ------------- Evolutions (2) 1000 Regions Visited (5) 1000 Robots Destroyed (27) 135 Value Destroyed (512) 512 Prototype IDs (23) 460 Alien Tech Used (0) 0 Bonus (300) 300 TOTAL SCORE: 3407 Bonus ------- Aligned with FarCom 300 Cogmind --------- Core Integrity 0/550 Matter 206/300 Energy 100/100 System Corruption 0% Temperature Cool (9) Movement Core (1350) Ox26 Location -8/Materials Parts ------- > --- POWER (1) -------- (None) > --- PROPULSION (3) --- (None) > --- UTILITY (5) ------ Huge Storage Unit > --- WEAPON (2) ------- (None) > --- INVENTORY (25) --- Ion Engine Light Ion Engine Light Deuterium Engine Cesium-ion Thruster Small Storage Unit Hacking Suite Hacking Suite Faulty Precision Beam Rifle Assault Rifle Mining Laser Peak State ------------ > --- POWER ------------ Light Deuterium Engine > --- PROPULSION ------- Light Treads Light Treads > --- UTILITY ---------- Huge Storage Unit Improved Propulsion Shielding > --- WEAPON ----------- Latent Energy Streamer Assault Rifle > --- INVENTORY -------- Ion Engine Light Ion Engine Light Nuclear Core Cesium-ion Thruster Small Storage Unit Hacking Suite Hacking Suite Assault Rifle Grenade Launcher Mining Laser [Rating: 21] Favorites ----------- Power Ion Engine Engine Ion Engine Power Core Light Nuclear Core Propulsion Light Treads Treads Light Treads Utility Huge Storage Unit Device Seismic Detector Storage Huge Storage Unit Protection Improved Propulsion Shielding Weapon Assault Rifle Energy Cannon Latent Energy Streamer Ballistic Gun Assault Rifle Launcher Grenade Launcher Special Weapon Mining Laser Build | -11 -10 -10 -10 -9 -8 ------- Run | Yrd Mat Min Exi Min Mat Slots Evolved 4 | . . . . . 4 Power . | . . . . . . Propulsion 1 | . . . . . 1 Utility 3 | . . . . . 3 Weapon . | . . . . . . Parts Attached 14 | 7 2 1 . 1 3 Power 3 | 1 . . . . 2 Engine 2 | 1 . . . . 1 Core 1 | . . . . . 1 Reactor . | . . . . . . Propulsion 2 | 2 . . . . . Treads 2 | 2 . . . . . Leg . | . . . . . . Wheel . | . . . . . . Hover . | . . . . . . Flight . | . . . . . . Utility 4 | 2 1 . . . 1 Device 1 | 1 . . . . . Storage 2 | 1 1 . . . . Processor . | . . . . . . Hackware . | . . . . . . Protection 1 | . . . . . 1 Artifact . | . . . . . . Weapon 5 | 2 1 1 . 1 . Energy Gun . | . . . . . . Energy Cannon 1 | . . . . 1 . Ballistic Gun 2 | 2 . . . . . Ballistic Cannon . | . . . . . . Launcher 1 | . . 1 . . . Special Weapon 1 | . 1 . . . . Impact Weapon . | . . . . . . Slashing Weapon . | . . . . . . Piercing Weapon . | . . . . . . Special Melee Weapon . | . . . . . . Unidentified Prototypes . | . . . . . . Parts Lost 7 | . . . . . 7 Power 1 | . . . . . 1 Propulsion 2 | . . . . . 2 Utility 1 | . . . . . 1 Weapon 3 | . . . . . 3 Highest Loss Streak 7 | . . . . . 7 To Critical Strikes . | . . . . . . Average Backups 6 | 1 5 7 7 8 9 Power 1 | . 1 2 2 2 2 Propulsion . | . . . . . . Utility 2 | . 1 3 3 3 3 Weapon 2 | . 1 2 2 3 3 Tool/Special . | . . . . . . Unused Backups 5 | 1 . . . . 4 Power 1 | . . . . . 1 Propulsion 1 | . . . . . 1 Utility 2 | . . . . . 2 Weapon 1 | 1 . . . . . Tool/Special . | . . . . . . Average Slot Usage (%) 91 | . 100 100 100 100 57 Engine 12 | . 14 14 14 14 4 Treads 25 | . 28 28 28 28 17 Device 11 | . 14 14 14 14 . Storage 12 | . 14 14 14 14 9 Energy Cannon 3 | . . . . 9 8 Ballistic Gun 18 | . 27 22 14 14 8 Launcher 3 | . . 5 14 4 . Peak Build Rating 21 | 7 8 8 9 17 21 Average Rating 11 | 4 7 8 8 14 18 On Entrance 8 | . 7 8 8 9 17 Naked Turns . | . . . . . . Heaviest Build 99 | 15 90 91 91 98 99 Greatest Support 40 | 40 40 40 40 40 40 Greatest Overweight (x) 29 | . 2 2 2 2 29 Average Overweight (x) 1 | . 1 2 2 2 2 Largest Inventory Capacity 25 | 8 25 25 25 25 25 Average Capacity 23 | 6 22 25 25 25 25 Most Carried 11 | 5 7 7 8 8 11 Average Carried 6 | 1 5 7 7 8 9 Final Capacity 25 | 8 25 25 25 25 25 Final Carried 10 | 2 7 7 8 8 10 Class Distribution -------------------- 100% | Mutant Dominant Class ---------------- Mutant | -10/Materials Mutant | -10/Mines Mutant | -10/Exiles Mutant | -9/Mines Mutant | -8/Materials Resources | -11 -10 -10 -10 -9 -8 ----------- Run | Yrd Mat Min Exi Min Mat Matter Collected 649 | 288 249 . . 50 62 Remotely . | . . . . . . Salvage Created 747 | 131 514 . . . 102 Parts 59 | 7 38 . . . 14 Haulers Intercepted . | . . . . . . Recyclers Shooed . | . . . . . . Parts Field Recycled . | . . . . . . Retrieved Matter . | . . . . . . Parts Self-Destructed . | . . . . . . Prevented . | . . . . . . Kills | -11 -10 -10 -10 -9 -8 ------- Run | Yrd Mat Min Exi Min Mat Combat Hostiles Destroyed 17 | . 12 . . . 5 Guns 15 | . 12 . . . 3 AOE 2 | . . . . . 2 Classes Destroyed 9 | 2 5 . . . 2 Worker 1 | . 1 . . . . Tunneler 3 | 2 1 . . . . Recycler 2 | 1 1 . . . . Operator 2 | . 2 . . . . Watcher 2 | . 2 . . . . Swarmer 9 | . 6 . . . 3 Grunt 6 | . 6 . . . . Sentry 1 | . . . . . 1 Specialist 1 | . . . . . 1 Best Kill Streak 8 | 3 8 . . . 3 Combat Bots Only 6 | . 6 . . . 3 Max Kills in Single Turn 2 | 2 2 . . . 2 Gunslinging 1 | . 1 . . . . Exploded 2 | . . . . . 2 Melee . | . . . . . . Uniques/NPCs Destroyed . | . . . . . . Combat | -11 -10 -10 -10 -9 -8 -------- Run | Yrd Mat Min Exi Min Mat Hostile Shots Fired 179 | . 53 . . . 126 Missed 59 | . 15 . . . 44 Hits 120 | . 38 . . . 82 Projectile 120 | . 38 . . . 82 Critical Strikes 4 | . . . . . 4 Damage Taken 1745 | . 406 . . . 1339 Core 628 | . 76 . . . 552 Absorbed by Shields . | . . . . . . Redirected to Shielding 67 | . . . . . 67 Core Remaining (%) 84 | 100 . . . 69 . Volleys Fired 60 | 3 38 . . . 19 Largest 2 | 2 2 . . . 2 Hottest 100 | 40 100 . . . 50 Shots Fired 103 | 6 74 . . 1 22 Gun 96 | 6 73 . . . 17 Cannon . | . . . . . . Launcher 6 | . . . . 1 5 Special 1 | . 1 . . . . Kinetic 96 | 6 73 . . . 17 Thermal 1 | . 1 . . . . Explosive 6 | . . . . 1 5 Electromagnetic . | . . . . . . Robot Hit Streak 9 | 4 7 . . . 9 Robot Miss Streak 4 | . 4 . . . 2 Penetration Max . | . . . . . . Secondary Targets 3 | . 3 . . . . Max Gunslinging Chain 1 | . 1 . . . . Shots Hit Robots 64 | 4 44 . . . 16 Core Hits 45 | 4 27 . . . 14 Critical Kills 1 | . 1 . . . . Critical Parts Destroyed . | . . . . . . Critical Strikes 1 | . 1 . . . . Destroy 1 | . 1 . . . . Melee Attacks . | . . . . . . Impact . | . . . . . . Slashing . | . . . . . . Piercing . | . . . . . . Sneak Attacks . | . . . . . . Combat Hostiles . | . . . . . . Follow-up Attacks . | . . . . . . Damage Inflicted 1164 | 60 571 . . . 533 Guns 807 | 60 571 . . . 176 Cannons . | . . . . . . Explosions 357 | . . . . . 357 Melee . | . . . . . . Ramming . | . . . . . . Kinetic 807 | 60 571 . . . 176 Thermal . | . . . . . . Explosive 357 | . . . . . 357 Electromagnetic . | . . . . . . Impact . | . . . . . . Slashing . | . . . . . . Piercing . | . . . . . . Highest Corruption 2 | . 2 2 2 2 . Average Corruption 2 | . 2 2 2 2 . Corruption Purged . | . . . . . . Corruption Blocked . | . . . . . . Effects 36 | . 5 6 10 15 . Message Errors 10 | . 2 1 4 3 . Matter Fused 7 | . . . 3 4 . Heat Flow Errors 4 | . . 2 1 1 . Energy Discharges 6 | . . 3 . 3 . Parts Fused 1 | . 1 . . . . Data Loss (minor) 1 | . . . . 1 . Data Loss (major) 5 | . 1 . 2 2 . Misfires 1 | . . . . 1 . Weapon Failures 1 | . 1 . . . . Overload Shots . | . . . . . . Overflow Damage . | . . . . . . Projectiles . | . . . . . . Explosions . | . . . . . . Melee . | . . . . . . Knockbacks . | . . . . . . Impact . | . . . . . . Kinetic . | . . . . . . Secondary . | . . . . . . Self-Inflicted Damage 70 | . . . . . 70 Shots 4 | . . . . . 4 Rammed . | . . . . . . Targets Rammed . | . . . . . . Kicked . | . . . . . . Crushed . | . . . . . . Highest Temperature 270 | . 20 270 94 261 20 Average Temperature 89 | . 8 122 56 135 7 Received Heat Transfer 396 | . 90 . . . 306 Siege Activations . | . . . . . . Martial Activations . | . . . . . . Shielding Activations . | . . . . . . Robots Disrupted . | . . . . . . Combat Hostiles . | . . . . . . Robots Corrupted . | . . . . . . Combat Hostiles . | . . . . . . Parts Fried . | . . . . . . Impact Corruptions . | . . . . . . Robots Melted . | . . . . . . Combat Hostiles . | . . . . . . Parts Melted . | . . . . . . Heat Transferred . | . . . . . . Parts Sabotaged . | . . . . . . Parts Stolen . | . . . . . . Parts Stripped . | . . . . . . Power Chain Reactions . | . . . . . . Alert | -11 -10 -10 -10 -9 -8 ------- Run | Yrd Mat Min Exi Min Mat Maximum Alert Level 1 | . 1 . . . . Low Security (%) 99 | 100 98 100 . 100 100 Level 1 . | . 1 . . . . Level 2 . | . . . . . . Level 3 . | . . . . . . Level 4 . | . . . . . . Level 5 . | . . . . . . High Security . | . . . . . . Max Security . | . . . . . . Peak Influence 208 | 15 208 . . 5 70 Initial . | . . . . . . Average 22 | 2 52 . . . 8 Influence Increases 488 | 15 330 . . 5 138 Destroy 0b10 Robot/C 340 | . 240 . . . 100 Destroy 0b10 Robot/NC 50 | 15 35 . . . . Destroy Leader 74 | . 54 . . . 20 Destroy Structure 24 | . 1 . . 5 18 Influence Decreases 470 | 15 330 . . 5 120 Time Decay 426 | 15 330 . . 5 76 Lost Part 44 | . . . . . 44 Squads Dispatched 6 | . 2 . . . 4 Investigation . | . . . . . . Extermination . | . . . . . . Reinforcement 6 | . 2 . . . 4 Assault . | . . . . . . Garrison . | . . . . . . Intercept . | . . . . . . Searches Triggered . | . . . . . . Construction Impeded 1 | . . . . . 1 Haulers Reinforced . | . . . . . . Active Scanning Responses . | . . . . . . Cargo Convoy Interrupts . | . . . . . . Stealth | -11 -10 -10 -10 -9 -8 --------- Run | Yrd Mat Min Exi Min Mat Distress Signals 4 | . 3 1 . . . Communications Jammed . | . . . . . . Distress Signals . | . . . . . . Times Spotted 36 | . 21 . . . 15 Peak Tracking Total 9 | . 6 . . . 9 Tactical Retreats . | . . . . . . Traps | -11 -10 -10 -10 -9 -8 ------- Run | Yrd Mat Min Exi Min Mat Traps Triggered 1 | . 1 . . . . Indirectly . | . . . . . . Trap Hack Attempts . | . . . . . . Triggered . | . . . . . . Disarmed . | . . . . . . Reprogrammed . | . . . . . . Reused . | . . . . . . Traps Extracted . | . . . . . . Installed . | . . . . . . Triggered . | . . . . . . Machines | -11 -10 -10 -10 -9 -8 ---------- Run | Yrd Mat Min Exi Min Mat Machines Disabled . | . . . . . . Max in Single Turn . | . . . . . . Machines Repaired . | . . . . . . Machines Dismantled . | . . . . . . Machines Sabotaged . | . . . . . . Overloaded Fab Kills . | . . . . . . Hacking | -11 -10 -10 -10 -9 -8 --------- Run | Yrd Mat Min Exi Min Mat Machines Accessed 6 | . 3 . 1 . 2 Terminals 5 | . 3 . . . 2 Fabricators . | . . . . . . Repair Stations . | . . . . . . Recycling Units . | . . . . . . Scanalyzers . | . . . . . . Garrison Access . | . . . . . . Total Hacks 10 | . 6 . 1 . 3 Successful 7 | . 4 . 1 . 2 Failed 3 | . 2 . . . 1 Catastrophic . | . . . . . . Database Lockouts . | . . . . . . Manual 10 | . 6 . 1 . 3 Terminals 9 | . 6 . . . 3 Fabricators . | . . . . . . Repair Stations . | . . . . . . Recycling Units . | . . . . . . Scanalyzers . | . . . . . . Garrison Access . | . . . . . . Terminal Hacks 2 | . 1 . 1 . . Hauler Manifests 1 | . 1 . . . . Proto ID Catalog 1 | . . . 1 . . Fabricator Hacks . | . . . . . . Repair Station Hacks . | . . . . . . Recycling Unit Hacks . | . . . . . . Scanalyzer . | . . . . . . Garrison Access Hacks . | . . . . . . Unauthorized Hacks 5 | . 3 . . . 2 Terminals 5 | . 3 . . . 2 Botnet 3 | . 2 . . . 1 Operators 2 | . 1 . . . 1 Fabricators . | . . . . . . Repair Stations . | . . . . . . Recycling Units . | . . . . . . Scanalyzers . | . . . . . . Garrison Access . | . . . . . . Data Cores Recovered . | . . . . . . Used . | . . . . . . Hacking Detections 3 | . 2 . . . 1 Full Trace Events 1 | . 1 . . . . Feedback Events . | . . . . . . Feedback Blocked . | . . . . . . Robot Schematics Acquired . | . . . . . . Robots Built . | . . . . . . Authchips . | . . . . . . Time . | . . . . . . Total Robot Build Rating . | . . . . . . Part Schematics Acquired . | . . . . . . Parts Built . | . . . . . . Authchips . | . . . . . . Time . | . . . . . . Total Part Build Rating . | . . . . . . Parts Repaired . | . . . . . . Time . | . . . . . . Parts Recycled . | . . . . . . Recycled Matter . | . . . . . . Retrieved Matter . | . . . . . . Retrieved Components . | . . . . . . Parts Scanalyzed . | . . . . . . Part Schematics Acquired . | . . . . . . Parts Damaged . | . . . . . . Bothacking | -11 -10 -10 -10 -9 -8 ------------ Run | Yrd Mat Min Exi Min Mat Used RIF Installer . | . . . . . . Robots Hacked . | . . . . . . Non-combat . | . . . . . . Combat . | . . . . . . Robot Hacks Applied . | . . . . . . Relay Couplers Released . | . . . . . . Fabnet Peak Effective % . | . . . . . . Robots Rewired . | . . . . . . Allies Hacked . | . . . . . . Hacks Repelled . | . . . . . . Allies | -11 -10 -10 -10 -9 -8 -------- Run | Yrd Mat Min Exi Min Mat Total Allies . | . . . . . . Largest Group . | . . . . . . Highest-Rated Group . | . . . . . . Highest-Rated Ally . | . . . . . . Total Orders . | . . . . . . Ally Attacks . | . . . . . . Total Damage . | . . . . . . Kills . | . . . . . . Allies Corrupted . | . . . . . . Allies Melted . | . . . . . . Intel | -11 -10 -10 -10 -9 -8 ------- Run | Yrd Mat Min Exi Min Mat Active Infowar (turns) 3457 | 22 1443 402 680 846 64 Seismic 3457 | 22 1443 402 680 846 64 Robot Analysis Total . | . . . . . . Derelict Logs Recovered 2 | . . 1 . 1 . Drone Launches . | . . . . . . Drone Recoveries . | . . . . . . Exploration | -11 -10 -10 -10 -9 -8 ------------- Run | Yrd Mat Min Exi Min Mat Turns Passed 4321 | 113 1443 402 680 846 837 Spaces Moved 1236 | 64 444 126 213 181 208 Core 25 | 24 . . . . 1 Treads 1211 | 40 444 126 213 181 207 Legs . | . . . . . . Wheels . | . . . . . . Hover . | . . . . . . Flight . | . . . . . . Fastest Speed 50 | 50 160 320 320 320 320 Average Speed 297 | 118 282 320 320 320 326 Slowest Speed 1500 | 160 320 320 320 320 1500 Overloaded Moves . | . . . . . . Propulsion Burnouts . | . . . . . . Robots Hopped . | . . . . . . Potential Cave-ins . | . . . . . . Cave-ins Triggered . | . . . . . . Exploration Rate (%) 37 | 5 76 23 61 44 18 Regions Visited 5 Branch Regions 3 Pre-discovered Areas . | . . . . . . Known Exits Taken . | . . . . . . Unknown Exits Taken 5 | 1 1 1 1 1 . Scrap Searched 1 | . . . . 1 . Spaces Dug 1 | . 1 . . . . Terrain Destroyed 41 | . 1 . . 5 35 Melee . | . . . . . . Projectile 1 | . 1 . . . . AOE 40 | . . . . 5 35 Terrain Rammed . | . . . . . . Walls Destroyed . | . . . . . . Machines Disabled . | . . . . . . Actions | -11 -10 -10 -10 -9 -8 --------- Run | Yrd Mat Min Exi Min Mat Total 1786 | 96 554 126 213 449 348 Wait 456 | 12 65 . . 268 111 Move 1231 | 63 443 125 212 180 208 Hop . | . . . . . . Pick Up 20 | 10 5 . 1 . 4 Fast Attach . | . . . . . . Attach 9 | 7 . . . . 2 Detach . | . . . . . . Swap 8 | . 3 1 . 1 3 Drop 2 | 1 . . . . 1 Fire 60 | 3 38 . . . 19 Melee . | . . . . . . Ram . | . . . . . . Kick . | . . . . . . Crush . | . . . . . . Escape Stasis . | . . . . . . Rewire . | . . . . . . Trap . | . . . . . . Miscellaneous . | . . . . . . Route ------- -11/Scrapyard -10/Materials (discovered 5 exits: [*Mat x2] / [*Min x2] / [*Sub]) -10/Mines -10/Exiles -9/Mines -8/Materials (discovered 2 exits: Fac / Sto) History --------- Turn | Location | Event 6 | -11/Scrapyard | Discovered new exit (range 15) 114 | -11/Scrapyard | Entered Materials 198 | -10/Materials | Discovered new exit (range 14) 256 | -10/Materials | Discovered new exit (range 10) 311 | -10/Materials | Build established: Mutant 581 | -10/Materials | Discovered new exit (range 6) 714 | -10/Materials | Derelicts attacked the area 974 | -10/Materials | Discovered new exit (range 3) 1493 | -10/Materials | Discovered new exit (range 16) 1557 | -10/Materials | Entered Mines 1753 | -10/Mines | Learned 4 Materials zone layouts 1773 | -10/Mines | Assembled infested the area 1879 | -10/Mines | Met 8R-AWN 1943 | -10/Mines | Discovered new exit (range 5) 1959 | -10/Mines | Entered Exiles 2036 | -10/Exiles | Welcomed by 8R-AWN 2094 | -10/Exiles | Met EX-HEX 2180 | -10/Exiles | Met EX-BIN 2231 | -10/Exiles | Aligned with FarCom system 2235 | -10/Exiles | Given EX-Vault access code 2311 | -10/Exiles | Opened EX-Vault 2343 | -10/Exiles | Found Latent Energy Streamer 2405 | -10/Exiles | Warned to stay clear of 0b10 Research branches 2495 | -10/Exiles | Met EX-DEC 2613 | -10/Exiles | Discovered new exit (range 10) 2639 | -10/Exiles | Left Exiles lab with Latent Energy Streamer 2639 | -10/Exiles | Entered Mines 2726 | -9/Mines | Learned Materials trap positions 3140 | -9/Mines | Discovered new exit (range 15) 3485 | -9/Mines | Entered Materials 3485 | -8/Materials | Evolved 4 slots: Propulsion x1, Utility x3 3486 | -8/Materials | Identified exit to Storage 3486 | -8/Materials | Identified exit to Factory 3487 | -8/Materials | Loaded intel: 11 trap records 4316 | -8/Materials | Core integrity fell below 50% 4320 | -8/Materials | Core integrity fell below 20% 4322 | -8/Materials | Destroyed by X-57 Shotgunner with Shotgun Last Messages --------------- 04307_ Critical hit (Burn: +37). 04307_ Grenade Launcher destroyed. 04307_ Lgt. Treads destroyed. 04307_ T-07 Excavator is excavating. 04310_ Penetrated by Slug. 04310_ U-05 Engineer destroyed. 04310_ Knocked back. 04310_ Acquired Prototype Energy Gun. 04312_ K-01 Serf collects debris. 04312_ Critical hit (Burn: +37). 04313_ M-13 Machinist destroyed. 04314_ Slug penetrates Wall. 04314_ K-01 Serf destroyed. 04316_ Penetrated by Slug. 04316_ Latent Energy Streamer destroyed. 04317_ The unstable cave ceiling collapses. 04317_ Imp. Carbon-fiber Leg crushed. 04318_ X-62 Marksman destroyed. 04321_ R-06 Scavenger collects Wheel. 04322_ K-01 Serf collects debris. Map ----- +----------------------------------------------------+ | #???????????# ! [ #???# #???????? | | #???????????# #???# #???????? | | #???????????# #???# ####????? | | #???????????# ! #???# # ####?? | | #???????????# ! #???# "T" # !##? | | #???????????# #???# """ + !#? | | ##################+############### !#? | | [* !#? | | = = !#? | | % !##? | | ##+######+########+############### ####?? | | # ????? ?????????????# #????? | | # #????! ???######???## ##???? | | # #???! ??# ##### #???? | | "T" # """ #???! ""??# " #???? | | # """ ## """ # T #???? | | ####### """ ## """ # ##### #???? | | ## ## ## ###########???? | | ## #Y "T" ##xx# #????? | | " ## ############# + """ #????? | | " ## #??######???# =# """ #????? | | " ## #??# ??#%%# """ #????? | | " "" ## #??# ?# *# !#????? | | " Y" ########### #% # """ #????? | | "" # ## #= # """ #????? | | # """ ## =@!# """ #????? | | #+#### """ ## # # [; #????? | | ^ # """ ##?????# % ; #########????? | | + #??????##% [ #???????????? | | ^ # """"" #??????# %!* #??????????? | | # """"" #??????# !!!= #??????????? | | # """"" ######## !%[* #??????????? | | "" # # ## g ##??????????? | | T" ########## # gr k#####???????? | | "" # """ # g Hg #???????? | | # """ # gg < #???????? | | # """ # #???????? | | ########### + # ! ########???????? | | ########### ######## ##########??????? | | # # # # # #??????? | | ?????????????????????# ????????????????? | | ?????????????????????+ ????????????????? | | ?????????????????????# ????????????????? | | ??????????????????????? ????????????????? | | ??????????????????????? ????????????????? | | ?????????????????????????????????????????? | | ?????????????????????????????????????????? | | ?????????????????????????????????????????? | | ?????????????????????????????????????????? | | ?????????????????????????????????????????? | +----------------------------------------------------+ Best States ------------- Heat Dissipation 31 Energy Generation 14 Energy Capacity 250 Matter Stores 300 Matter Capacity 300 Sight Range 16 Terrain Scan Density 10 Propulsion Shielding 66 Evasion (%) 50 Recoil Reduction 2 Item Schematics ----------------- None Robot Schematics ------------------ None Fabricated ------------ Nothing Repaired ---------- Nothing Alien Tech Used ----------------- None Achievements -------------- None Challenges ------------ None Game ------ Seed ChainSeismicPlating Manual? 0 Play Time 00:14:04 Cumulative 21.5 hours Start 2025.10.12 @ 18:19:19 End 2025.10.12 @ 18:32:31 Sessions 1 Manual Loads 0 Difficulty Rogue Special Mode None Game No. 63 Rogue 63 Adventurer 0 Explorer 0 Win Type - Total 0 Types 0/0/0/0/0/0/0/0/0/0 Lore% 33 Gallery% 28 Achievement% 29 Wizard Run 0 Options --------- Layout 1 ASCII 0 Keyboard 0 Movement Numpad Keybinds 0 Fullscreen 1 Font 24/Smallcaps Map View 50x35 Zoom Use 0% Tactical HUD 1 Map Filters NONE Filters NONE Steam 1 RUN: 0cce67f4-e705-4101-95fa-dd75c04a48fa